bitfinex-derivatives/quotes_SOLF0:USTF0_20251018
["timestamp","ask_amount","ask_price","bid_price","bid_amount"]
[1760827933459,2.59,187.09,187.04,4.8102]
[1760827933659,46.59,187.09,187.05,2.73]
[1760827934068,49.8088655,187.1,187.06,2.73]
[1760827934463,49.8088655,187.1,187.05,4.8099]
[1760827934767,49.8088655,187.1,187.06,2.73]
[1760827935169,49.8088655,187.1,187.05,4.8099]
[1760827935370,5.8088655,187.1,187.07,2.73]
[1760827935570,44.0,187.09,187.07,2.73]
[1760827936173,5.8088655,187.1,187.07,2.73]
[1760827936571,2.61,187.09,187.07,2.73]
[1760827938566,46.61,187.09,187.07,2.73]
[1760827941874,2.61,187.09,187.07,2.73]
[1760827942066,44.0,187.09,187.07,2.73]
[1760827942272,2.61,187.08,187.05,7.6199]
[1760827942574,2.61,187.08,187.06,2.81]
[1760827942772,46.61,187.08,187.06,2.81]
[1760827943374,2.61,187.08,187.06,2.81]
[1760827944569,44.0,187.09,187.05,4.8099]
[1760827944873,46.61,187.09,187.07,2.81]
[1760827945274,2.61,187.09,187.07,2.81]
[1760827945572,2.61,187.08,187.06,2.81]
[1760827950175,2.61,187.08,187.05,4.8099]
[1760827950373,44.0,187.09,187.07,2.81]
[1760827950578,2.61,187.09,187.07,2.81]
[1760827950875,46.61,187.09,187.07,2.81]
[1760827951479,2.61,187.08,187.05,4.8099]
[1760827951675,2.61,187.08,187.06,2.81]
[1760827952580,46.61,187.09,187.07,2.81]
[1760827954778,2.61,187.08,187.07,2.81]
[1760827955373,44.0,187.09,187.06,4.8097]
[1760827955580,5.8288655,187.07,187.06,4.8097]
[1760827957681,2.61,187.06,187.04,7.6202]
[1760827958079,2.61,187.06,187.05,2.81]
[1760827960977,3.2188655,187.07,187.05,7.6199]
[1760827961178,3.2188655,187.07,187.06,2.81]
[1760827963782,3.2188655,187.11,187.03,2.81]
[1760827964080,3.2188655,187.08,187.04,2.81]
[1760827964285,2.61,187.07,187.04,2.81]
[1760827964878,3.2188655,187.08,187.05,4.81]
[1760827965082,2.61,187.07,187.05,4.81]
[1760827965277,3.2188655,187.08,187.05,4.81]
[1760827965484,47.2188655,187.08,187.05,4.81]
[1760827966179,3.2188655,187.08,187.05,4.81]
[1760827966381,3.2188655,187.08,187.03,4.8104]
[1760827966583,2.65,187.06,187.03,4.8104]
[1760827966886,5.8688655,187.05,187.03,4.8104]
[1760827967080,5.8688655,187.05,187.03,7.5404]
[1760827969685,3.2188655,187.05,187.04,2.73]
[1760827969980,44.0,187.07,187.01,2.73]
[1760827970178,3.2188655,187.08,187.02,2.73]
[1760827970983,5.8688655,187.08,187.05,4.8099]
[1760827971287,5.8688655,187.08,187.05,7.5399]
[1760827974292,3.2188655,187.08,187.05,7.5399]
[1760827974592,2.65,187.07,187.05,7.5399]
[1760827983493,5.8688655,187.08,187.06,2.73]
[1760827983687,2.65,187.07,187.05,4.8099]
[1760827983890,2.65,187.07,187.05,7.5399]
[1760827989994,3.2188655,187.08,187.05,7.5399]
[1760827990195,3.2188655,187.08,187.05,4.8099]
[1760827990196,47.2188655,187.08,187.05,4.8099]
[1760827990495,47.2188655,187.08,187.06,4.8096]
[1760827990701,47.2188655,187.08,187.07,2.73]
[1760827992500,3.2188655,187.08,187.07,2.73]
[1760827995198,5.9988655,187.08,187.07,2.73]
[1760827995801,5.9988655,187.08,187.06,4.8096]
[1760827995995,5.9988655,187.08,187.06,7.5396]
[1760827996401,3.2188655,187.08,187.06,4.8096]
[1760827996604,2.6,187.07,187.06,4.8096]
[1760827997407,3.2188655,187.08,187.04,4.8102]
[1760827997607,2.6,187.06,187.04,4.8102]
[1760827997808,44.0,187.07,187.04,4.8102]
[1760827998010,5.8188655,187.05,187.04,4.8102]
[1760827998707,5.8188655,187.05,187.04,7.4002]
[1760827999012,5.8188655,187.05,187.04,4.8102]
[1760828001912,3.2188655,187.05,187.04,7.4002]
[1760828002110,5.8188655,187.05,187.04,7.4002]
[1760828006021,3.2188655,187.05,187.04,7.4002]
[1760828008022,47.2188655,187.08,187.05,4.8098]
[1760828008221,47.2188655,187.08,187.06,2.59]
[1760828008417,47.2188655,187.08,187.05,4.8098]
[1760828008623,47.2188655,187.08,187.06,2.59]
[1760828009716,3.2188655,187.08,187.06,2.59]
[1760828011524,3.2188655,187.08,187.06,7.3997]
[1760828011731,3.2188655,187.08,187.07,2.59]
[1760828011924,5.8188655,187.08,187.06,4.8097]
[1760828012235,5.8188655,187.08,187.06,7.3997]
[1760828012430,5.8188655,187.08,187.06,4.8097]
[1760828012732,5.8188655,187.08,187.07,2.59]
[1760828014738,3.2188655,187.08,187.07,2.59]
[1760828017841,5.8188655,187.08,187.07,2.59]
[1760828018041,5.8188655,187.08,187.06,4.8097]
[1760828018843,2.6,187.08,187.06,4.8097]
[1760828019042,2.6,187.08,187.06,7.3997]
[1760828019434,2.6,187.08,187.06,4.8097]
[1760828019742,2.6,187.08,187.07,2.59]
[1760828020543,5.8188655,187.09,187.07,2.59]
[1760828021938,3.2188655,187.09,187.07,4.8094]
[1760828022236,3.2188655,187.09,187.08,2.59]
[1760828022640,5.8188655,187.09,187.07,4.8094]
[1760828022845,5.8188655,187.09,187.07,7.3994]
[1760828029046,2.6,187.09,187.07,7.3994]
[1760828037046,3.2188655,187.1,187.07,4.8094]
[1760828037257,3.2188655,187.1,187.08,2.59]
[1760828037855,5.9188655,187.1,187.08,2.59]
[1760828039965,2.7,187.09,187.08,2.59]
[1760828040664,2.7,187.09,187.07,7.3994]
[1760828046575,2.7,187.09,187.08,2.59]
[1760828046776,5.8088655,187.1,187.08,2.59]
[1760828050473,3.2188655,187.1,187.08,2.59]
[1760828050673,2.59,187.09,187.08,2.59]
[1760828064784,43.98,187.11,187.09,4.809]
[1760828064986,3.2188655,187.13,187.06,2.61]
[1760828065186,3.2188655,187.13,187.07,2.61]
[1760828066190,3.2188655,187.13,187.12,2.61]
[1760828066487,2.78,187.12,187.11,4.8085]
[1760828066789,2.78,187.12,187.09,7.419]
[1760828066985,43.98,187.15,187.09,7.419]
[1760828066986,3.2188655,187.1,187.09,4.809]
[1760828067185,5.9988655,187.1,187.09,4.809]
[1760828071988,3.2188655,187.1,187.09,7.419]
[1760828075593,57.91438621,187.13,187.1,4.8086]
[1760828075790,5.9988655,187.13,187.11,2.61]
[1760828076190,5.9988655,187.13,187.11,4.8084]
[1760828076396,5.9988655,187.13,187.12,2.61]
[1760828076899,3.2188655,187.13,187.12,2.61]
[1760828078095,43.98,187.14,187.13,2.61]
[1760828078398,5.9988655,187.16,187.14,2.61]
[1760828078595,13.92864909,187.16,187.14,2.61]
[1760828078798,10.0231914,187.16,187.14,2.61]
[1760828079297,3.2188655,187.16,187.15,2.61]
[1760828080795,5.9988655,187.16,187.15,2.61]
[1760828081497,3.2188655,187.16,187.15,2.61]
[1760828085494,2.78,187.18,187.15,7.4173]
[1760828087206,2.78,187.18,187.17,4.807]
[1760828089404,2.85,187.2,187.17,4.807]
[1760828089602,2.85,187.2,187.18,2.69]
[1760828090003,2.85,187.2,187.17,4.807]
[1760828090708,3.2188655,187.21,187.17,4.807]
[1760828091103,3.2188655,187.21,187.17,7.497]
[1760828091801,2.85,187.2,187.17,7.497]
[1760828092003,3.2188655,187.21,187.17,7.497]
[1760828092210,2.85,187.2,187.18,2.69]
[1760828092412,2.85,187.2,187.18,7.4966]
[1760828094010,2.85,187.2,187.18,4.8066]
[1760828094221,2.85,187.2,187.18,7.4966]
[1760828095413,3.2188655,187.21,187.19,2.69]
[1760828095820,6.0688655,187.21,187.19,2.69]
[1760828099223,2.85,187.2,187.18,4.8066]
[1760828100623,2.85,187.2,187.18,7.4966]
[1760828101019,2.85,187.2,187.15,7.4973]
[1760828101227,3.2188655,187.17,187.15,7.4973]
[1760828101420,2.85,187.16,187.15,7.4973]
[1760828101814,2.85,187.16,187.15,4.8073]
[1760828102021,3.2188655,187.17,187.15,4.8073]
[1760828102220,6.0688655,187.2,187.17,4.807]
[1760828102420,6.0688655,187.2,187.18,2.69]
[1760828102621,6.0688655,187.2,187.12,2.69]
[1760828102822,6.0688655,187.2,187.18,7.4966]
[1760828103321,3.2188655,187.2,187.19,2.69]
[1760828104124,6.0688655,187.2,187.18,7.4966]
[1760828112026,3.2188655,187.2,187.19,2.83]
[1760828120832,2.85,187.19,187.18,4.8066]
[1760828121732,3.2188655,187.2,187.16,4.8072]
[1760828121936,6.0688655,187.17,187.16,4.8072]
[1760828122431,3.2188655,187.17,187.16,7.5272]
[1760828123236,3.2188655,187.2,187.19,7.5265]
[1760828123741,6.0688655,187.2,187.19,4.8065]
[1760828124835,3.2188655,187.2,187.17,4.8069]
[1760828125435,2.85,187.19,187.17,4.8069]
[1760828125632,2.85,187.19,187.17,7.5269]
[1760828127238,3.2188655,187.2,187.19,2.72]
[1760828127629,6.0688655,187.2,187.18,7.5266]
[1760828128541,3.2188655,187.2,187.19,2.72]
[1760828141954,2.85,187.22,187.2,4.8062]
[1760828142547,7.23575191,187.23,187.2,4.8062]
[1760828143251,2.85,187.22,187.2,4.8062]
[1760828143552,7.23575191,187.23,187.2,4.8062]
[1760828143753,2.85,187.22,187.2,4.8062]
[1760828143950,7.23575191,187.23,187.2,4.8062]
[1760828144156,2.85,187.22,187.2,4.8062]
[1760828144651,7.23575191,187.23,187.2,4.8062]
[1760828144844,2.85,187.22,187.2,4.8062]
[1760828145048,7.23575191,187.23,187.2,4.8062]
[1760828145249,2.85,187.22,187.2,4.8062]
[1760828145455,7.23575191,187.23,187.2,4.8062]
[1760828145754,2.85,187.22,187.2,4.8062]
[1760828146255,7.23575191,187.23,187.2,4.8062]
[1760828146852,2.8,187.22,187.2,4.8062]
[1760828147255,6.81688641,187.22,187.2,4.8062]
[1760828147445,2.8,187.21,187.2,4.8062]
[1760828147844,7.23575191,187.23,187.22,2.73]
[1760828148855,3.2188655,187.23,187.22,2.73]
[1760828149055,7.23575191,187.23,187.22,2.73]
[1760828149254,3.2188655,187.23,187.17,6.65223064]
[1760828149556,2.8,187.22,187.19,2.73]
[1760828149757,2.8,187.22,187.17,6.65223064]
[1760828149959,2.8,187.22,187.21,4.8059]
[1760828150258,3.2188655,187.23,187.22,2.73]
[1760828151249,6.82040606,187.25,187.23,4.8055]
[1760828151449,6.82040606,187.25,187.23,7.5355]
[1760828152559,2.8,187.25,187.23,7.5355]
[1760828153755,47.1588655,187.26,187.23,4.8055]
[1760828154154,2.8,187.24,187.23,4.8055]
[1760828159267,2.8,187.23,187.21,7.5359]
[1760828159568,6.0188655,187.23,187.21,7.5359]
[1760828160469,2.8,187.22,187.21,4.8059]
[1760828165869,2.8,187.22,187.21,7.5359]
[1760828167077,47.1588655,187.23,187.21,7.5359]
[1760828167278,49.9588655,187.23,187.21,7.5359]
[1760828167779,3.2188655,187.23,187.21,4.8059]
[1760828167974,47.1588655,187.23,187.22,2.6]
[1760828168281,3.2188655,187.23,187.22,2.6]
[1760828171573,43.94,187.25,187.23,4.8055]
[1760828171779,43.94,187.25,187.24,2.6]
[1760828171974,2.77,187.26,187.2,2.6]
[1760828172278,41.6,187.27,187.25,7.405]
[1760828172982,41.6,187.27,187.26,2.6]
[1760828173179,3.2188655,187.28,187.26,7.4046]
[1760828173378,5.9888655,187.28,187.26,7.4046]
[1760828173680,10.00005199,187.28,187.26,7.4046]
[1760828174477,5.9888655,187.28,187.26,7.4046]
[1760828174679,43.94,187.29,187.28,7.4042]
[1760828175076,5.9888655,187.31,187.22,6.65223064]
[1760828175279,2.77,187.34,187.32,2.6]
[1760828175879,2.77,187.34,187.29,7.4039]
[1760828176276,2.77,187.34,187.29,4.8039]
[1760828176277,2.77,187.33,187.29,4.8039]
[1760828176476,2.77,187.33,187.3,2.82]
[1760828176477,2.62,187.33,187.3,2.82]
[1760828177979,2.62,187.31,187.29,4.8039]
[1760828179780,2.62,187.31,187.29,7.6239]
[1760828179975,47.1388655,187.32,187.3,2.82]
[1760828180380,47.1388655,187.32,187.29,4.8039]
[1760828180580,47.1388655,187.32,187.3,2.82]
[1760828180786,3.2188655,187.32,187.3,2.82]
[1760828180986,46.54,187.34,187.25,2.82]
[1760828181576,2.62,187.34,187.25,2.82]
[1760828182980,3.2188655,187.35,187.3,4.8035]
[1760828183186,2.62,187.34,187.3,7.6235]
[1760828183386,3.2188655,187.35,187.3,7.6235]
[1760828183387,47.1388655,187.35,187.3,7.6235]
[1760828183790,2.62,187.34,187.3,7.6235]
[1760828183987,47.1388655,187.35,187.3,7.6235]
[1760828184184,2.62,187.34,187.3,7.6235]
[1760828185084,47.1388655,187.35,187.3,4.8035]
[1760828185289,2.62,187.34,187.31,7.6233]
[1760828186586,2.62,187.34,187.32,2.82]
[1760828187084,2.62,187.34,187.31,4.8033]
[1760828187291,2.62,187.34,187.31,7.6233]
[1760828187487,3.2188655,187.35,187.31,7.6233]
[1760828187687,2.62,187.34,187.31,7.6233]
[1760828188090,3.2188655,187.35,187.31,7.6233]
[1760828188392,2.62,187.34,187.31,7.6233]
[1760828189590,3.2188655,187.35,187.31,7.6233]
[1760828190193,2.62,187.34,187.31,7.6233]
[1760828190590,3.2188655,187.35,187.31,7.6233]
[1760828190791,3.2188655,187.35,187.32,2.82]
[1760828190992,3.2188655,187.35,187.33,2.82]
[1760828191192,5.8388655,187.35,187.33,2.82]
[1760828194102,5.8388655,187.35,187.26,2.82]
[1760828194103,3.2188655,187.35,187.26,2.82]
[1760828195097,3.2188655,187.35,187.33,7.6228]
[1760828196503,3.2188655,187.35,187.34,2.82]
[1760828199097,2.62,187.38,187.34,2.82]
[1760828199304,5.8388655,187.38,187.28,2.82]
[1760828199804,5.8388655,187.38,187.29,2.82]
[1760828201096,5.8388655,187.38,187.36,4.802]
[1760828202203,2.62,187.37,187.36,4.802]
[1760828208699,2.78,187.37,187.33,2.82]
[1760828208894,2.78,187.37,187.27,6.65223064]
[1760828208895,3.2188655,187.35,187.28,2.73]
[1760828209695,3.2188655,187.35,187.29,2.73]
[1760828210106,3.2188655,187.35,187.34,7.5326]
[1760828216303,5.9988655,187.35,187.34,4.8026]
[1760828221210,5.9988655,187.35,187.31,2.73]
[1760828221211,2.78,187.34,187.31,4.8034]
[1760828221407,5.9988655,187.32,187.31,4.8034]
[1760828223813,5.9988655,187.32,187.29,7.5339]
[1760828224112,2.78,187.31,187.29,4.8039]
[1760828224310,2.78,187.31,187.27,53.0651696]
[1760828224708,3.2188655,187.32,187.28,2.73]
[1760828225005,2.78,187.31,187.28,2.73]
[1760828225206,2.78,187.31,187.29,2.73]
[1760828225400,5.9988655,187.32,187.28,2.73]
[1760828225601,3.2188655,187.32,187.3,4.8035]
[1760828225804,3.2188655,187.32,187.31,2.73]
[1760828227913,2.73,187.31,187.3,4.8035]
[1760828228701,2.73,187.31,187.28,7.5941]
[1760828228901,2.73,187.31,187.28,4.8041]
[1760828229304,3.2188655,187.32,187.3,2.79]
[1760828229704,5.9488655,187.32,187.3,2.79]
[1760828230407,3.2188655,187.32,187.29,4.8038]
[1760828230614,3.2188655,187.32,187.27,7.5943]
[1760828230810,2.73,187.31,187.27,7.5943]
[1760828231011,3.2188655,187.32,187.27,7.5943]
[1760828231313,2.73,187.31,187.28,2.79]
[1760828231508,3.2188655,187.32,187.28,2.79]
[1760828231909,2.73,187.31,187.28,2.79]
[1760828232109,3.2188655,187.32,187.28,2.79]
[1760828232310,3.2188655,187.32,187.27,4.8043]
[1760828232914,2.73,187.31,187.27,7.5943]
[1760828233110,3.2188655,187.32,187.27,7.5943]
[1760828233311,2.73,187.31,187.27,7.5943]
[1760828233914,3.2188655,187.32,187.27,7.5943]
[1760828234106,3.2188655,187.32,187.24,7.595]
[1760828234310,2.73,187.31,187.24,7.595]
[1760828234507,3.2188655,187.32,187.24,7.595]
[1760828234717,2.73,187.31,187.24,7.595]
[1760828234919,3.2188655,187.32,187.24,7.595]
[1760828235114,2.73,187.31,187.24,7.595]
[1760828235520,51.9422655,187.32,187.24,7.595]
[1760828235926,2.73,187.31,187.24,7.595]
[1760828237722,2.73,187.31,187.25,4.8048]
[1760828237926,2.73,187.31,187.25,7.6348]
[1760828239923,2.68,187.3,187.25,7.6348]
[1760828240322,4.8035,187.31,187.25,7.6348]
[1760828240521,2.68,187.3,187.25,7.6348]
[1760828240718,4.8035,187.31,187.25,7.6348]
[1760828241123,2.68,187.3,187.25,7.6348]
[1760828241524,48.7235,187.31,187.25,4.8048]
[1760828242118,2.68,187.3,187.25,4.8048]
[1760828242523,2.68,187.3,187.25,7.6348]
[1760828242822,2.68,187.3,187.25,4.8048]
[1760828243227,2.68,187.29,187.26,2.83]
[1760828244122,2.68,187.3,187.28,2.83]
[1760828244330,3.2188655,187.32,187.27,2.83]
[1760828244529,5.8988655,187.32,187.26,4.8046]
[1760828244729,5.8988655,187.32,187.28,2.83]
[1760828245130,5.8988655,187.32,187.29,2.83]
[1760828246431,3.2188655,187.32,187.29,2.83]
[1760828246632,3.2188655,187.32,187.27,4.8043]
[1760828246831,5.8988655,187.32,187.28,2.83]
[1760828247032,2.68,187.31,187.29,2.83]
[1760828252834,2.68,187.34,187.24,6.65223064]
[1760828253040,2.68,187.34,187.25,2.83]
[1760828253435,2.68,187.36,187.32,2.83]
[1760828253737,2.68,187.36,187.31,4.8033]
[1760828253738,2.68,187.36,187.33,2.83]
[1760828254239,48.7221,187.37,187.33,2.83]
[1760828254540,48.7221,187.37,187.31,4.8033]
[1760828254541,2.68,187.35,187.32,2.83]
[1760828254734,2.68,187.36,187.32,2.83]
[1760828255335,2.68,187.35,187.32,2.83]
[1760828255939,4.8021,187.37,187.32,2.83]
[1760828256339,2.68,187.36,187.32,2.83]
[1760828256941,48.7221,187.37,187.32,2.83]
[1760828258142,2.68,187.36,187.32,2.83]
[1760828258742,48.7221,187.37,187.32,2.83]
[1760828259331,2.68,187.36,187.32,2.83]
[1760828259739,48.7221,187.37,187.32,2.83]
[1760828259933,2.68,187.36,187.31,4.8033]
[1760828260242,48.7221,187.37,187.32,2.83]
[1760828260543,2.68,187.36,187.32,2.83]
[1760828261238,48.7221,187.37,187.32,2.83]
[1760828261438,2.68,187.36,187.32,2.83]
[1760828261637,48.7221,187.37,187.32,2.83]
[1760828261834,2.68,187.36,187.32,2.83]
[1760828262039,48.7221,187.37,187.32,2.83]
[1760828262538,2.68,187.36,187.32,2.83]
[1760828262744,2.68,187.35,187.32,2.83]
[1760828263142,4.8021,187.37,187.32,2.83]
[1760828263447,2.68,187.35,187.32,2.83]
[1760828265144,2.68,187.35,187.33,2.83]
[1760828266642,43.92,187.36,187.33,2.83]
[1760828266837,2.73,187.35,187.31,4.8033]
[1760828267038,2.73,187.36,187.32,2.64]
[1760828267243,2.73,187.34,187.32,2.64]
[1760828273449,3.2188655,187.34,187.29,4.8038]
[1760828273647,2.73,187.33,187.29,7.4438]
[1760828274055,2.73,187.32,187.3,2.64]
[1760828277454,2.73,187.32,187.31,2.64]
[1760828277656,43.92,187.33,187.3,4.8036]
[1760828277847,3.2188655,187.34,187.28,2.64]
[1760828278145,47.1388655,187.34,187.28,2.64]
[1760828278350,3.2188655,187.34,187.28,2.64]
[1760828278652,47.1388655,187.34,187.28,2.64]
[1760828279153,49.8688655,187.34,187.31,7.4433]
[1760828279354,47.1388655,187.34,187.31,7.4433]
[1760828279552,2.73,187.33,187.31,7.4433]
[1760828280659,2.73,187.33,187.29,7.4439]
[1760828280960,2.73,187.32,187.29,7.4439]
[1760828281156,43.92,187.33,187.29,7.4439]
[1760828281352,3.2188655,187.34,187.29,7.4439]
[1760828281552,2.73,187.32,187.29,7.4439]
[1760828281752,43.92,187.33,187.29,7.4439]
[1760828282157,2.73,187.32,187.29,7.4439]
[1760828282358,43.92,187.33,187.29,2.64]
[1760828282554,2.73,187.3,187.28,2.64]
[1760828283156,3.2188655,187.31,187.28,2.64]
[1760828283458,2.73,187.3,187.28,2.64]
[1760828292864,2.73,187.3,187.28,2.6]
[1760828300172,2.62,187.3,187.23,2.86]
[1760828300372,43.92,187.29,187.23,2.86]
[1760828300671,43.92,187.29,187.24,2.86]
[1760828300976,43.92,187.29,187.27,2.86]
[1760828301368,43.92,187.29,187.25,2.86]
[1760828301682,43.92,187.29,187.28,2.86]
[1760828302172,5.8388655,187.33,187.28,4.8041]
[1760828302372,49.7788655,187.33,187.28,4.8041]
[1760828303064,2.62,187.32,187.28,4.8041]
[1760828303273,2.62,187.32,187.29,2.86]
[1760828303473,2.62,187.32,187.3,2.86]
[1760828306672,3.2188655,187.33,187.28,7.6641]
[1760828306871,2.62,187.31,187.29,2.86]
[1760828307266,3.2188655,187.33,187.29,2.86]
[1760828307773,43.94,187.32,187.29,2.86]
[1760828308671,2.62,187.31,187.28,7.6641]
[1760828308878,43.94,187.32,187.28,7.6641]
[1760828309074,2.62,187.29,187.28,4.8041]
[1760828312179,2.62,187.29,187.26,4.8047]
[1760828312382,3.2188655,187.3,187.26,7.6647]
[1760828312578,2.62,187.29,187.26,7.6647]
[1760828313081,2.62,187.29,187.27,4.8044]
[1760828313280,2.62,187.29,187.27,7.6644]
[1760828314984,3.2188655,187.3,187.27,4.8044]
[1760828315184,2.62,187.29,187.27,4.8044]
[1760828315379,2.62,187.29,187.25,7.6649]
[1760828315886,3.2188655,187.3,187.25,7.6649]
[1760828316087,2.62,187.29,187.25,7.6649]
[1760828316475,2.62,187.29,187.26,2.86]
[1760828317982,2.62,187.29,187.27,4.8044]
[1760828318688,2.62,187.29,187.27,7.6644]
[1760828327901,3.2188655,187.3,187.27,4.8044]
[1760828328702,3.2188655,187.3,187.28,2.64]
[1760828331602,3.2188655,187.3,187.27,4.8044]
[1760828331807,3.2188655,187.3,187.28,2.64]
[1760828332295,3.2188655,187.3,187.27,4.8044]
[1760828332806,3.2188655,187.3,187.28,2.64]
[1760828336902,3.2188655,187.3,187.27,4.8044]
[1760828337305,3.2188655,187.3,187.28,2.64]
[1760828338006,43.92,187.31,187.27,2.64]
[1760828338203,43.92,187.31,187.27,9.29223064]
[1760828338402,43.92,187.31,187.27,2.64]
[1760828338907,43.92,187.31,187.27,4.8044]
[1760828339203,2.74,187.3,187.28,2.64]
[1760828340302,49.8788655,187.31,187.27,4.8044]
[1760828340502,49.8788655,187.31,187.29,2.64]
[1760828340708,47.1388655,187.31,187.28,4.8041]
[1760828341005,47.1388655,187.31,187.29,2.64]
[1760828341809,49.8788655,187.31,187.29,2.64]
[1760828344305,2.74,187.3,187.29,2.64]
[1760828344511,2.74,187.3,187.28,4.8041]
[1760828344512,2.74,187.3,187.28,7.4441]
[1760828346913,49.8788655,187.31,187.29,2.64]
[1760828349915,49.8788655,187.31,187.28,4.8041]
[1760828349916,2.64,187.3,187.28,4.8041]
[1760828350117,47.1388655,187.31,187.28,4.8041]
[1760828350817,2.64,187.3,187.28,4.8041]
[1760828351017,47.1388655,187.31,187.28,4.8041]
[1760828351614,2.64,187.3,187.28,4.8041]
[1760828351814,47.1388655,187.31,187.28,4.8041]
[1760828352014,2.64,187.3,187.28,4.8041]
[1760828352317,47.1388655,187.31,187.28,4.8041]
[1760828352915,2.64,187.3,187.28,4.8041]
[1760828354122,47.1388655,187.31,187.28,4.8041]
[1760828354418,2.64,187.3,187.28,4.8041]
[1760828354611,47.1388655,187.31,187.28,4.8041]
[1760828355217,2.64,187.3,187.28,4.8041]
[1760828355418,47.1388655,187.31,187.28,4.8041]
[1760828355720,2.64,187.3,187.28,4.8041]
[1760828356017,47.1388655,187.31,187.28,4.8041]
[1760828356221,2.64,187.3,187.28,4.8041]
[1760828356520,2.8,187.3,187.28,4.8041]
[1760828357221,2.8,187.29,187.28,4.8041]
[1760828357417,2.8,187.29,187.25,9.39223064]
[1760828357617,2.8,187.27,187.26,4.8048]
[1760828359826,2.8,187.27,187.26,7.4348]
[1760828362121,49.9388655,187.28,187.26,7.4348]
[1760828368124,2.8,187.27,187.26,4.8048]
[1760828370026,2.8,187.27,187.26,7.4348]
[1760828371832,43.92,187.28,187.26,7.4348]
[1760828372330,2.8,187.28,187.26,7.4348]
[1760828372726,46.72,187.28,187.26,7.4348]
[1760828373234,43.92,187.28,187.27,2.63]
[1760828373636,43.92,187.29,187.28,2.63]
[1760828373836,6.0188655,187.3,187.28,2.63]
[1760828374337,43.92,187.29,187.28,2.63]
[1760828374730,46.72,187.29,187.28,2.63]
[1760828374930,43.92,187.29,187.28,2.63]
[1760828378338,46.72,187.29,187.27,7.4344]
[1760828379735,46.72,187.29,187.28,2.63]
[1760828380638,2.8,187.29,187.28,2.63]
[1760828380936,2.8,187.3,187.28,2.63]
[1760828381740,2.8,187.3,187.28,7.434]
[1760828382033,43.92,187.31,187.28,7.434]
[1760828382239,2.8,187.3,187.28,7.434]
[1760828386745,6.0188655,187.3,187.28,7.434]
[1760828388149,2.81,187.29,187.28,4.804]
[1760828396146,3.2188655,187.3,187.26,4.8047]
[1760828396552,2.81,187.29,187.26,4.8047]
[1760828396752,46.73,187.28,187.26,4.8047]
[1760828398450,2.81,187.27,187.26,4.8047]
[1760828399852,6.0288655,187.27,187.26,4.8047]
[1760828400647,3.2188655,187.27,187.24,4.8052]
[1760828400855,43.92,187.26,187.24,4.8052]
[1760828401048,2.81,187.25,187.22,2.77]
[1760828401247,2.81,187.23,187.2,2.77]
[1760828401551,2.81,187.23,187.21,2.77]
[1760828401952,2.81,187.23,187.21,7.5759]
[1760828402154,3.2188655,187.24,187.18,2.77]